bitfinex-derivatives/quotes_BTCF0:USTF0_20250117
["timestamp","ask_amount","ask_price","bid_price","bid_amount"]
[1737079124260,0.1418442,101830.0,101800.0,0.770721]
[1737079124567,0.3608,101820.0,101800.0,0.1418542]
[1737079124767,0.5126,101820.0,101800.0,0.5026542]
[1737079125182,0.6053332,101820.0,101800.0,0.049121]
[1737079125470,0.5126,101820.0,101800.0,0.049121]
[1737079125770,0.5026542,101810.0,101780.0,0.5129477]
[1737079125967,0.049121,101810.0,101800.0,0.3608]
[1737079126171,0.194521,101810.0,101800.0,0.3608]
[1737079126372,0.1454,101810.0,101800.0,0.4535332]
[1737079126966,0.1454,101810.0,101800.0,0.3608]
[1737079128073,0.1454,101810.0,101790.0,0.54901691]
[1737079128270,0.3608,101820.0,101790.0,0.3608]
[1737079128471,0.409909,101830.0,101810.0,0.18820691]
[1737079128972,0.049109,101830.0,101810.0,0.18820691]
[1737079129968,0.3608,101840.0,101820.0,0.18820291]
[1737079130772,0.3608,101840.0,101820.0,0.049113]
[1737079132170,0.54899491,101840.0,101810.0,0.409916]
[1737079132370,0.54900091,101830.0,101800.0,0.3608]
[1737079132570,0.3024,101820.0,101800.0,0.54901191]
[1737079132773,0.3024,101820.0,101800.0,0.55924973]
[1737079133972,0.4559,101820.0,101800.0,0.55924973]
[1737079134674,0.4559,101820.0,101800.0,0.409922]
[1737079134874,0.865814,101820.0,101800.0,0.54901191]
[1737079135179,0.865814,101820.0,101800.0,0.18821191]
[1737079135472,0.865814,101820.0,101800.0,0.049122]
[1737079135677,0.3608,101810.0,101790.0,0.54901691]
[1737079135874,0.865814,101820.0,101790.0,0.54901691]
[1737079136076,0.3608,101810.0,101790.0,0.54901691]
[1737079136380,0.865814,101820.0,101800.0,0.13908991]
[1737079136972,0.865814,101820.0,101790.0,0.54901691]
[1737079137674,0.865814,101820.0,101800.0,0.13908991]
[1737079137876,0.865814,101820.0,101790.0,0.54901691]
[1737079139072,0.865814,101820.0,101790.0,0.49988991]
[1737079139374,0.865814,101820.0,101800.0,0.049123]
[1737079140578,0.40992,101810.0,101790.0,0.049127]
[1737079140780,0.049128,101790.0,101770.0,0.049136]
[1737079141080,0.3608,101790.0,101780.0,0.18822191]
[1737079142483,0.409928,101790.0,101770.0,0.409936]
[1737079142674,0.409928,101790.0,101770.0,0.18822591]
[1737079142675,0.716728,101790.0,101770.0,0.18822591]
[1737079143079,0.875528,101790.0,101770.0,0.18822591]
[1737079144079,0.409932,101780.0,101760.0,1.02602567]
[1737079144275,0.409932,101780.0,101770.0,0.13908991]
[1737079144478,0.409932,101780.0,101760.0,1.02602567]
[1737079144981,0.409932,101780.0,101760.0,0.86882567]
[1737079145183,0.409937,101770.0,101760.0,0.358739]
[1737079145376,0.409937,101770.0,101760.0,0.49782891]
[1737079145577,0.409937,101770.0,101760.0,0.18822891]
[1737079145988,0.409937,101770.0,101760.0,0.049139]
[1737079146283,0.409937,101770.0,101750.0,0.37075018]
[1737079146284,0.049142,101760.0,101750.0,0.37075018]
[1737079146479,0.049142,101760.0,101750.0,0.55898709]
[1737079147177,0.049142,101760.0,101750.0,0.54903691]
[1737079147788,0.049142,101760.0,101750.0,0.18823691]
[1737079149478,0.049142,101760.0,101750.0,0.14195504]
[1737079150880,0.3608,101780.0,101760.0,0.049142]
[1737079151079,0.409934,101780.0,101760.0,0.14195004]
[1737079153182,0.91920804,101790.0,101770.0,0.14194504]
[1737079153183,0.875529,101790.0,101770.0,0.14194504]
[1737079153380,0.875529,101790.0,101760.0,0.45360804]
[1737079153381,0.6676,101790.0,101780.0,0.14194004]
[1737079153585,0.00147435,101820.0,101790.0,0.049125]
[1737079153586,0.205419,101810.0,101790.0,0.049125]
[1737079153782,0.881119,101810.0,101790.0,0.14193304]
[1737079154088,0.520319,101810.0,101790.0,0.14193304]
[1737079154486,0.881119,101810.0,101790.0,0.14193304]
[1737079154886,0.520319,101810.0,101790.0,0.14193304]
[1737079155587,0.881119,101810.0,101790.0,0.14193304]
[1737079157191,0.520319,101810.0,101800.0,0.14193104]
[1737079157587,0.3149,101810.0,101800.0,0.14193104]
[1737079159692,0.049123,101800.0,101790.0,0.049127]
[1737079160593,0.049123,101800.0,101780.0,0.45360804]
[1737079160789,0.049123,101800.0,101780.0,0.51292085]
[1737079161489,0.04913,101790.0,101770.0,0.556036]
[1737079161788,0.195124,101800.0,101780.0,0.14193704]
[1737079161989,0.195124,101800.0,101780.0,0.50273704]
[1737079163190,0.049124,101800.0,101790.0,0.09280804]
[1737079163396,0.049124,101800.0,101780.0,0.50273704]
[1737079165894,0.049124,101800.0,101790.0,0.3608]
[1737079166483,0.049124,101800.0,101780.0,0.50273704]
[1737079167098,0.409924,101800.0,101780.0,0.14193704]
[1737079167295,0.45360804,101800.0,101780.0,0.049129]
[1737079167502,0.14193604,101790.0,101770.0,0.56623086]
[1737079167703,0.049132,101780.0,101770.0,0.56623086]
[1737079168103,0.60730804,101780.0,101760.0,0.1602]
[1737079168398,0.60730804,101780.0,101750.0,0.65875304]
[1737079168399,0.049137,101770.0,101750.0,0.65875304]
[1737079168593,0.049137,101770.0,101750.0,0.66877443]
[1737079168987,0.049137,101770.0,101750.0,0.30797443]
[1737079169399,0.049137,101770.0,101750.0,0.66877443]
[1737079170195,0.409937,101770.0,101750.0,0.66877443]
[1737079170398,0.3608,101760.0,101750.0,0.30797443]
[1737079170606,0.049147,101750.0,101740.0,0.20882347]
[1737079171087,0.049147,101750.0,101740.0,0.30163151]
[1737079173599,0.049147,101750.0,101740.0,0.15967347]
[1737079173804,0.049147,101750.0,101740.0,0.25248151]
[1737079177298,0.409943,101760.0,101740.0,0.30163051]
[1737079177500,0.409943,101760.0,101740.0,0.30015704]
[1737079177707,0.50275104,101760.0,101740.0,0.207349]
[1737079177896,0.409943,101760.0,101740.0,0.30015704]
[1737079180007,0.409943,101760.0,101740.0,0.1582]
[1737079180411,0.409943,101760.0,101740.0,0.25100804]
[1737079181102,0.3608,101750.0,101740.0,0.1582]
[1737079181310,0.14195504,101750.0,101730.0,0.37069791]
[1737079181499,0.28615504,101750.0,101730.0,0.46350595]
[1737079181807,0.193347,101750.0,101730.0,0.46350595]
[1737079182205,0.554147,101750.0,101730.0,0.46350595]
[1737079183208,0.64695504,101750.0,101730.0,0.46350595]
[1737079183409,0.95045504,101750.0,101730.0,0.46350595]
[1737079183708,0.95045504,101750.0,101730.0,0.00989791]
[1737079183900,0.95045504,101750.0,101720.0,0.50276804]
[1737079184600,0.95045504,101750.0,101720.0,0.51295052]
[1737079184601,0.049153,101740.0,101720.0,0.51295052]
[1737079185205,0.049157,101730.0,101720.0,0.37098248]
[1737079185410,0.049157,101730.0,101720.0,0.01018248]
[1737079185610,0.049157,101730.0,101720.0,0.09280804]
[1737079186210,0.049157,101730.0,101720.0,0.45360804]
[1737079187615,0.90130804,101750.0,101720.0,0.45360804]
[1737079187810,0.049153,101740.0,101730.0,0.09280804]
[1737079188015,0.049153,101740.0,101720.0,0.50276904]
[1737079193316,0.049149,101750.0,101730.0,0.50276304]
[1737079193516,0.049149,101750.0,101740.0,0.09280804]
[1737079193711,0.14195704,101750.0,101740.0,0.3608]
[1737079193913,0.14195704,101750.0,101730.0,0.50276404]
[1737079193914,0.40995,101750.0,101730.0,0.50276404]
[1737079194117,0.04915,101750.0,101730.0,0.50276404]
[1737079194815,0.049152,101740.0,101730.0,0.50276404]
[1737079199414,0.049152,101740.0,101730.0,0.51298281]
[1737079200523,0.049144,101760.0,101730.0,0.96659085]
[1737079200728,0.5191,101780.0,101750.0,0.50275504]
[1737079200909,0.049138,101770.0,101760.0,0.14194904]
[1737079201116,0.04913,101790.0,101770.0,0.049137]
[1737079201418,0.04913,101790.0,101770.0,0.571537]
[1737079201723,0.04913,101790.0,101770.0,0.732937]
[1737079201920,0.04913,101790.0,101770.0,0.82574504]
[1737079202226,0.04913,101790.0,101780.0,0.14194004]
[1737079202525,0.409924,101800.0,101780.0,0.50274004]
[1737079202723,0.049124,101800.0,101780.0,0.50274004]
[1737079202926,0.049124,101800.0,101790.0,0.049127]
[1737079203125,0.368319,101810.0,101790.0,0.59554008]
[1737079203326,0.3608,101820.0,101800.0,0.14193104]
[1737079203527,0.09280804,101840.0,101820.0,0.049113]
[1737079203528,0.198604,101840.0,101820.0,0.049113]
[1737079203724,0.570999,101850.0,101830.0,0.14191504]
[1737079204028,0.409899,101850.0,101830.0,0.14191504]
[1737079204230,0.049099,101850.0,101840.0,0.09280804]
[1737079204416,0.409894,101860.0,101840.0,0.09280804]
[1737079204614,0.3608,101860.0,101850.0,0.09280804]
[1737079205013,0.75480804,101880.0,101850.0,0.09280804]
[1737079205214,0.049089,101870.0,101860.0,0.09280804]
[1737079205930,0.049089,101870.0,101850.0,0.409898]
[1737079206130,0.409886,101880.0,101850.0,0.50270604]
[1737079206320,0.409886,101880.0,101860.0,0.09280804]
[1737079206516,0.3608,101890.0,101870.0,0.09280804]
[1737079206726,0.3608,101890.0,101860.0,0.50270104]
[1737079206727,0.3608,101880.0,101860.0,0.50270104]
[1737079207031,0.50269804,101870.0,101840.0,0.731502]
[1737079207218,0.50269804,101870.0,101850.0,0.09280804]
[1737079207613,0.40989,101870.0,101850.0,0.09280804]
[1737079207818,0.409885,101880.0,101860.0,0.09280804]
[1737079208026,0.409885,101880.0,101870.0,0.09280804]
[1737079208721,0.3608,101880.0,101860.0,0.14190104]
[1737079209031,0.409886,101880.0,101860.0,0.14190104]
[1737079209226,0.50269704,101870.0,101850.0,0.14190604]
[1737079209529,0.049094,101860.0,101840.0,0.83444939]
[1737079209729,0.049094,101860.0,101850.0,0.09280804]
[1737079210128,0.049099,101850.0,101840.0,0.3216]
[1737079210426,0.049111,101830.0,101810.0,0.14192504]
[1737079210817,0.049111,101830.0,101820.0,0.09280804]
[1737079211322,0.049115,101820.0,101800.0,0.3608]
[1737079211527,0.049115,101820.0,101810.0,0.45360804]
[1737079211835,0.049115,101820.0,101810.0,0.09280804]
[1737079212221,0.049118,101810.0,101800.0,0.45360804]
[1737079212425,0.049118,101810.0,101800.0,0.3608]
[1737079212730,0.049118,101810.0,101800.0,0.50273104]
[1737079212926,0.049113,101820.0,101800.0,0.50273104]
[1737079213137,0.049113,101820.0,101810.0,0.45360804]
[1737079213536,0.049113,101820.0,101810.0,0.3608]
[1737079214032,0.14190704,101850.0,101830.0,0.049107]
[1737079214033,0.049101,101850.0,101830.0,0.049107]
[1737079214220,0.049101,101850.0,101810.0,0.54641608]
[1737079214221,0.409906,101840.0,101820.0,0.14192004]
[1737079214420,0.049106,101840.0,101830.0,0.09280804]
[1737079214621,0.049108,101830.0,101820.0,0.09280804]
[1737079215029,0.049108,101830.0,101810.0,0.50272504]
[1737079215329,0.049113,101820.0,101810.0,0.09280804]
[1737079215630,0.049119,101810.0,101790.0,0.81215612]
[1737079216126,0.049123,101800.0,101790.0,0.80223204]
[1737079216325,0.049123,101800.0,101790.0,0.39230804]
[1737079216520,0.049123,101800.0,101790.0,0.75310804]
[1737079216721,0.049123,101800.0,101790.0,0.09280804]
[1737079217325,0.409923,101800.0,101790.0,0.09280804]
[1737079217726,0.409923,101800.0,101780.0,0.3608]
[1737079217727,0.049132,101780.0,101770.0,0.09280804]
[1737079217925,0.049132,101780.0,101760.0,0.50274804]
[1737079217926,0.409932,101780.0,101760.0,0.50274804]
[1737079218127,0.049137,101770.0,101760.0,0.09280804]
[1737079219628,0.049137,101770.0,101750.0,0.715147]
[1737079219822,0.049137,101770.0,101760.0,0.09280804]
[1737079220533,0.409932,101780.0,101760.0,0.14195004]
[1737079220724,0.409932,101780.0,101770.0,0.09280804]
[1737079221122,0.049132,101780.0,101770.0,0.45360804]
[1737079221328,0.049128,101790.0,101780.0,0.049129]
[1737079221531,0.049128,101790.0,101780.0,0.3608]
[1737079222234,0.049128,101790.0,101780.0,0.49990227]
[1737079223327,0.409919,101810.0,101790.0,0.049128]
[1737079223635,0.409919,101810.0,101790.0,0.18823027]
[1737079224026,0.049119,101810.0,101790.0,0.409928]
[1737079224637,0.049119,101810.0,101800.0,0.13910227]
[1737079225333,0.049119,101810.0,101790.0,0.54903027]
[1737079227328,0.13910227,101800.0,101770.0,0.409936]
[1737079227533,0.049123,101800.0,101780.0,0.54903427]
[1737079227733,0.049123,101800.0,101790.0,0.13910227]
[1737079227938,0.049123,101800.0,101780.0,0.54903427]
[1737079229133,0.409923,101800.0,101780.0,0.54903427]
[1737079229341,0.049123,101800.0,101780.0,0.54903427]
[1737079229837,0.049123,101800.0,101790.0,0.3608]
[1737079230037,0.049123,101800.0,101780.0,0.54903427]
[1737079231833,0.049136,101780.0,101760.0,0.80631467]
[1737079232432,0.049137,101770.0,101760.0,0.80631467]
[1737079232933,0.049137,101770.0,101760.0,0.39637367]
[1737079233336,0.049137,101770.0,101750.0,0.715146]
[1737079233337,0.049142,101760.0,101750.0,0.715146]
[1737079233638,0.049142,101760.0,101750.0,0.3608]
[1737079234838,0.409938,101770.0,101750.0,0.49990227]
[1737079235030,0.049138,101770.0,101750.0,0.49990227]
[1737079235235,0.3608,101780.0,101750.0,0.409946]
[1737079235236,0.049142,101760.0,101750.0,0.409946]
[1737079235547,0.049138,101770.0,101750.0,0.54904827]
[1737079238344,0.049138,101770.0,101760.0,0.3608]
[1737079240543,0.3608,101780.0,101760.0,0.49990227]
[1737079240847,0.049134,101780.0,101760.0,0.54904327]
[1737079241144,0.049134,101780.0,101770.0,0.13910227]
[1737079241346,0.049134,101780.0,101760.0,0.54904327]
[1737079241941,0.049128,101790.0,101770.0,0.49990227]
[1737079242149,0.049128,101790.0,101780.0,0.49990227]
[1737079242334,0.347924,101800.0,101780.0,0.54903127]
[1737079242532,0.347924,101800.0,101790.0,0.49990227]
[1737079242533,0.049124,101800.0,101790.0,0.49990227]
[1737079242732,0.049124,101800.0,101780.0,0.54903127]
[1737079242934,0.65840227,101810.0,101780.0,0.409929]
[1737079243150,0.049128,101790.0,101780.0,0.3608]
[1737079243551,0.3608,101800.0,101780.0,0.49990227]
[1737079243743,0.409924,101800.0,101780.0,0.54903227]
[1737079244854,0.049124,101800.0,101780.0,0.54903227]
[1737079245147,0.29760227,101810.0,101790.0,0.54902727]
[1737079245148,0.049119,101810.0,101790.0,0.54902727]
[1737079245358,0.718514,101820.0,101800.0,0.54902227]
[1737079245556,0.560714,101820.0,101810.0,0.13910227]
[1737079245746,0.560714,101820.0,101800.0,0.54902227]
[1737079246253,0.409914,101820.0,101800.0,0.54902227]
[1737079249254,0.36227413,101830.0,101820.0,0.049113]
[1737079249255,0.00147413,101830.0,101820.0,0.049113]
[1737079249454,0.00147413,101830.0,101820.0,0.18821527]
[1737079249760,0.00147413,101830.0,101820.0,0.54901527]
[1737079250446,0.00147413,101830.0,101820.0,0.84931527]
[1737079251365,0.409895,101860.0,101840.0,0.049101]
[1737079251574,0.409895,101860.0,101850.0,0.13910227]
[1737079251766,0.409895,101860.0,101850.0,0.18820127]
[1737079252269,0.3608,101870.0,101850.0,0.18820127]
[1737079252474,0.40989,101870.0,101850.0,0.34170127]
[1737079253474,0.40989,101870.0,101850.0,0.202599]
[1737079255165,0.40989,101870.0,101850.0,0.34170127]
[1737079256772,0.40989,101870.0,101850.0,0.202599]
[1737079260775,0.81420227,101880.0,101850.0,0.202599]
[1737079260776,0.36227318,101890.0,101860.0,0.13910227]
[1737079261068,0.00147318,101890.0,101870.0,0.49990227]
[1737079261269,0.409884,101880.0,101860.0,0.049093]
[1737079261470,0.3608,101870.0,101860.0,0.049093]
[1737079261872,0.14057545,101890.0,101860.0,0.13910227]
[1737079261873,0.05055318,101890.0,101860.0,0.13910227]
[1737079262078,0.05055318,101890.0,101870.0,0.54899027]
[1737079262374,0.05055318,101890.0,101880.0,0.13910227]
[1737079262570,0.05055318,101890.0,101870.0,0.54899027]
[1737079262772,0.41135318,101890.0,101870.0,0.54899027]
[1737079262974,0.05055318,101890.0,101870.0,0.54899027]
[1737079263479,0.05055318,101890.0,101880.0,0.13910227]
[1737079263676,0.05055318,101890.0,101870.0,0.54899027]
[1737079263889,0.41135318,101890.0,101870.0,0.54899027]
[1737079264070,0.049088,101880.0,101860.0,0.553693]
[1737079264269,0.049091,101870.0,101850.0,0.563398]
[1737079264469,0.049091,101870.0,101850.0,0.70250027]
[1737079264669,0.049091,101870.0,101860.0,0.18819627]
[1737079265877,0.049091,101870.0,101860.0,0.049094]
[1737079266573,0.049094,101860.0,101850.0,0.409898]
[1737079266778,0.049094,101860.0,101850.0,0.54900027]
[1737079267370,0.049094,101860.0,101850.0,0.18820027]
[1737079267975,0.049099,101850.0,101840.0,0.56327895]
[1737079268179,0.049103,101840.0,101820.0,0.49990227]
[1737079268487,0.049108,101830.0,101820.0,0.13910227]
[1737079269383,0.409903,101840.0,101810.0,0.72450312]
[1737079269574,0.049113,101820.0,101810.0,0.001473]
[1737079269771,0.049118,101810.0,101800.0,0.54902427]
[1737079270278,0.049114,101820.0,101800.0,0.68812654]
[1737079270577,0.049114,101820.0,101810.0,0.13910227]
[1737079271476,0.049114,101820.0,101810.0,0.54902027]
[1737079272485,0.3608,101830.0,101810.0,0.54902027]
[1737079272682,0.409909,101830.0,101820.0,0.13910227]
[1737079272885,0.409909,101830.0,101810.0,0.54902027]
[1737079273084,0.409909,101830.0,101810.0,0.18822027]
[1737079273585,0.049113,101820.0,101810.0,0.13910227]
[1737079274491,0.200613,101820.0,101810.0,0.49990227]
[1737079274786,0.409909,101830.0,101810.0,0.54902027]
[1737079274976,0.409909,101830.0,101820.0,0.13910227]
[1737079275376,0.409909,101830.0,101820.0,0.09266638]
[1737079275774,0.049109,101830.0,101820.0,0.09266638]
[1737079276689,0.049109,101830.0,101820.0,0.54613276]
[1737079276900,0.049109,101830.0,101820.0,0.45346638]
[1737079277189,0.049109,101830.0,101820.0,0.3608]
[1737079277387,0.049109,101830.0,101820.0,0.45346638]
[1737079277590,0.049104,101840.0,101820.0,0.59524376]
[1737079277789,0.049104,101840.0,101830.0,0.09266638]
[1737079278884,0.196799,101850.0,101830.0,0.50257438]
[1737079279190,0.196799,101850.0,101840.0,0.09266638]
[1737079280093,0.049099,101850.0,101840.0,0.09266638]
[1737079280287,0.6545,101860.0,101830.0,0.3608]
[1737079280591,0.6545,101860.0,101830.0,0.45346638]
[1737079280592,0.049103,101840.0,101830.0,0.45346638]
[1737079281488,0.049103,101840.0,101830.0,0.09266638]
[1737079282395,0.049103,101840.0,101830.0,0.45346638]
[1737079282577,0.049103,101840.0,101830.0,0.50257438]
[1737079285094,0.049103,101840.0,101830.0,0.3608]
[1737079285592,0.049103,101840.0,101830.0,0.45346638]
[1737079286193,0.049103,101840.0,101830.0,0.50257438]
[1737079286690,0.049103,101840.0,101830.0,0.45346638]
[1737079287087,0.049103,101840.0,101830.0,0.3608]
[1737079287687,0.3608,101840.0,101820.0,0.65647838]
[1737079287888,0.049108,101830.0,101820.0,0.3608]
[1737079288090,0.049113,101820.0,101810.0,0.51766873]
[1737079288293,0.049113,101820.0,101810.0,0.37086873]
[1737079288501,0.049113,101820.0,101810.0,0.3608]
[1737079288794,0.049118,101810.0,101800.0,0.00147318]
[1737079288996,0.409918,101810.0,101800.0,0.00147318]
[1737079289194,0.049118,101810.0,101800.0,0.50406256]
[1737079289399,0.049118,101810.0,101800.0,0.09413956]
[1737079289596,0.049118,101810.0,101800.0,0.00147318]
[1737079290094,0.049128,101790.0,101780.0,0.65669738]
[1737079290293,0.049128,101790.0,101780.0,0.60756638]
[1737079290493,0.14179438,101790.0,101780.0,0.3608]
[1737079291003,0.14179438,101790.0,101760.0,0.29590738]
[1737079291004,0.049137,101770.0,101760.0,0.45346638]
[1737079291499,0.049137,101770.0,101760.0,0.49998414]
[1737079291891,0.049137,101770.0,101760.0,0.3608]
[1737079292089,0.049135,101780.0,101760.0,0.54912614]
[1737079292285,0.049135,101780.0,101770.0,0.13918414]
[1737079292688,0.049135,101780.0,101770.0,0.54912114]
[1737079292893,0.049135,101780.0,101770.0,0.18832114]
[1737079293089,0.049135,101780.0,101770.0,0.54912114]
[1737079293493,0.049135,101780.0,101770.0,0.18832114]
[1737079294092,0.049135,101780.0,101770.0,0.54912114]
[1737079294489,0.671,101800.0,101770.0,0.54912114]
[1737079294690,0.049131,101790.0,101770.0,0.18832114]
[1737079294901,0.049131,101790.0,101770.0,0.54912114]
[1737079295496,0.3102,101800.0,101780.0,0.49998414]
[1737079295698,0.049124,101800.0,101780.0,0.54911514]
[1737079296195,0.049124,101800.0,101790.0,0.18831214]
[1737079296500,0.049124,101800.0,101790.0,0.049128]
[1737079297088,0.65358414,101810.0,101780.0,0.564331]
[1737079297289,0.049128,101790.0,101770.0,0.566737]
[1737079297585,0.049132,101780.0,101770.0,0.3608]
[1737079297790,0.049132,101780.0,101760.0,0.56434]
[1737079298097,0.049132,101780.0,101760.0,0.70352414]
[1737079298286,0.049132,101780.0,101770.0,0.13918414]
[1737079298491,0.049132,101780.0,101760.0,0.70352414]
[1737079298901,0.049132,101780.0,101770.0,0.13918414]
[1737079299201,0.409932,101780.0,101760.0,0.70352414]
[1737079299395,0.049137,101770.0,101750.0,0.80885805]
[1737079299600,0.049137,101770.0,101750.0,0.85800305]
[1737079300104,0.049137,101770.0,101750.0,0.70740305]
[1737079300488,0.049137,101770.0,101750.0,0.57822806]
[1737079300698,0.049137,101770.0,101750.0,0.56821891]
[1737079300998,0.049142,101760.0,101750.0,0.41141891]
[1737079301399,0.049142,101760.0,101750.0,0.55060305]
[1737079302189,0.049138,101770.0,101750.0,0.55060305]
[1737079302603,0.5099,101780.0,101750.0,0.18980305]
[1737079302799,0.049142,101760.0,101750.0,0.55060305]
[1737079303000,0.54912614,101760.0,101740.0,0.049151]
[1737079303207,0.049152,101740.0,101730.0,0.69704014]
[1737079303503,0.049152,101740.0,101730.0,0.557856]
[1737079303894,0.049152,101740.0,101730.0,0.197056]
[1737079304095,0.049152,101740.0,101730.0,0.33624014]
[1737079304295,0.049152,101740.0,101730.0,0.049156]
[1737079304500,0.049152,101740.0,101730.0,0.18834014]
[1737079304802,0.049152,101740.0,101730.0,0.54914014]
[1737079305105,0.049152,101740.0,101730.0,0.18834014]
[1737079305305,0.049152,101740.0,101730.0,0.54914014]
[1737079307302,0.3608,101750.0,101740.0,0.04915]
[1737079307303,0.049147,101750.0,101740.0,0.04915]
[1737079307809,0.3608,101760.0,101730.0,0.409955]
[1737079308001,0.049152,101740.0,101730.0,0.18833914]
[1737079308200,0.049152,101740.0,101730.0,0.049155]
[1737079309005,0.409948,101750.0,101730.0,0.54913914]
[1737079309205,0.409948,101750.0,101740.0,0.18833614]
[1737079309501,0.049148,101750.0,101740.0,0.049152]
[1737079309701,0.049148,101750.0,101740.0,0.18833614]
[1737079309904,0.049148,101750.0,101740.0,0.54913614]
[1737079310910,0.3608,101760.0,101740.0,0.54913614]
[1737079311211,0.409943,101760.0,101750.0,0.13918414]
[1737079311410,0.409943,101760.0,101750.0,0.09280544]
[1737079312208,0.049143,101760.0,101750.0,0.45360544]
[1737079312604,0.049143,101760.0,101750.0,0.50275244]
[1737079312913,0.049137,101770.0,101760.0,0.049142]
[1737079313114,0.049137,101770.0,101760.0,0.50274744]
[1737079315815,0.049137,101770.0,101760.0,0.14194744]
[1737079316308,0.3608,101780.0,101750.0,0.5151]
[1737079316309,0.049142,101760.0,101750.0,0.5151]
[1737079316500,0.049142,101760.0,101750.0,0.24710544]
[1737079317004,0.049142,101760.0,101750.0,0.1543]
[1737079317203,0.049142,101760.0,101750.0,0.24710544]
[1737079318010,0.049142,101760.0,101740.0,0.67032266]
[1737079318308,0.049142,101760.0,101750.0,0.09280544]
[1737079318507,0.049138,101770.0,101750.0,0.45360544]
[1737079318718,0.3608,101780.0,101760.0,0.14194744]
[1737079318906,0.409932,101780.0,101770.0,0.09280544]
[1737079319308,0.049132,101780.0,101770.0,0.09280544]
[1737079319707,0.049132,101780.0,101770.0,0.50274244]
[1737079320006,0.049132,101780.0,101770.0,0.66034244]
[1737079320208,0.71230273,101790.0,101770.0,0.66034244]
[1737079320409,0.00147473,101790.0,101780.0,0.50273744]
[1737079320609,0.00147473,101790.0,101780.0,0.14193744]
[1737079320910,0.05060273,101790.0,101780.0,0.09280544]
[1737079321098,0.05060273,101790.0,101780.0,0.3608]
[1737079321303,0.05060273,101790.0,101770.0,0.8622825]
[1737079321506,0.05060273,101790.0,101770.0,0.674]
[1737079321712,0.05060273,101790.0,101770.0,0.8131455]
[1737079322210,0.41140273,101790.0,101770.0,0.674]
[1737079322400,0.3608,101780.0,101760.0,0.1882855]
[1737079322810,0.409933,101780.0,101760.0,0.1391455]
[1737079323014,0.567433,101780.0,101760.0,0.30901993]
[1737079323809,0.049137,101770.0,101760.0,0.16987443]
[1737079324008,0.409937,101770.0,101760.0,0.16987443]
[1737079324204,0.409937,101770.0,101750.0,0.7986455]
[1737079324205,0.049137,101770.0,101750.0,0.7986455]
[1737079324514,0.6662,101780.0,101760.0,0.4999455]
[1737079324712,0.6662,101780.0,101770.0,0.1391455]
[1737079325112,0.3608,101780.0,101770.0,0.1391455]
[1737079325710,0.36227473,101790.0,101770.0,0.1391455]
[1737079325917,0.00147473,101790.0,101780.0,0.4999455]
[1737079326318,0.00147473,101790.0,101780.0,0.7916455]
[1737079329515,0.00147473,101790.0,101780.0,0.3608]
[1737079329814,0.049137,101770.0,101760.0,0.16987443]
[1737079330021,0.049137,101770.0,101760.0,0.53067443]
[1737079330219,0.049137,101770.0,101760.0,0.16987443]
[1737079330612,0.049137,101770.0,101750.0,0.4999455]
[1737079331011,0.348737,101770.0,101750.0,0.3608]
[1737079331210,0.049142,101760.0,101740.0,0.6527]
[1737079331524,0.5490875,101760.0,101740.0,0.3608]
[1737079331730,0.409942,101760.0,101740.0,0.4999455]
[1737079332615,0.409942,101760.0,101740.0,0.3608]
[1737079333011,0.3608,101750.0,101730.0,0.41142918]
[1737079333424,0.3608,101750.0,101730.0,0.05062918]
[1737079333617,0.3608,101750.0,101730.0,0.00147418]
[1737079334326,0.5490935,101750.0,101730.0,0.00147418]
[1737079334622,0.2948,101740.0,101720.0,0.3608]
[1737079335025,0.8438975,101740.0,101720.0,0.3608]
[1737079335233,0.3608,101730.0,101700.0,1.07341993]
[1737079335529,0.4999455,101730.0,101700.0,1.13261353]
[1737079335921,0.3608,101730.0,101700.0,0.9627391]
[1737079336224,0.5491025,101730.0,101700.0,0.9627391]
[1737079336425,0.5491025,101730.0,101700.0,0.9527155]
[1737079337442,0.5491025,101730.0,101700.0,0.4608]
[1737079337443,0.1391455,101720.0,101700.0,0.4608]
[1737079337743,0.1391455,101720.0,101700.0,0.1]
[1737079337744,0.5491115,101710.0,101700.0,0.1]
[1737079337935,0.8460115,101710.0,101700.0,0.1]
[1737079339148,0.8460115,101710.0,101680.0,0.30827486]
[1737079339741,0.8460115,101710.0,101680.0,0.66907486]
[1737079339941,0.8460115,101710.0,101680.0,0.80822036]
[1737079340145,0.8460115,101710.0,101680.0,0.66907486]
[1737079340338,0.3608,101700.0,101680.0,0.66907486]
[1737079341044,0.4999455,101700.0,101680.0,0.66907486]
[1737079341742,0.1391455,101690.0,101670.0,0.409983]
[1737079342546,0.4999455,101690.0,101670.0,0.3608]
[1737079343249,0.4999455,101690.0,101660.0,0.8435355]
[1737079343250,0.1883265,101680.0,101660.0,0.6552]
[1737079343638,0.1883265,101680.0,101660.0,0.2944]
[1737079343639,0.8412265,101680.0,101660.0,0.2944]
[1737079343840,0.702081,101680.0,101660.0,0.2944]
[1737079344746,0.8412265,101680.0,101660.0,0.2944]
[1737079345143,0.4999455,101670.0,101630.0,0.58135408]
[1737079345344,0.40999,101660.0,101640.0,0.1391455]
[1737079345741,0.40999,101660.0,101630.0,1.01759958]
[1737079345946,0.5491355,101660.0,101630.0,0.34777965]
[1737079346340,0.40999,101660.0,101630.0,0.48692515]
[1737079346552,0.3608,101650.0,101630.0,0.48692515]
[1737079346754,0.3608,101650.0,101630.0,0.34777965]
[1737079346947,0.3608,101650.0,101630.0,0.48692515]
[1737079347846,0.21307219,101650.0,101630.0,0.48692515]
[1737079348159,0.21307219,101650.0,101630.0,0.70857965]
[1737079348160,0.049195,101650.0,101630.0,0.70857965]
[1737079348545,0.1883455,101640.0,101630.0,0.29857565]
[1737079348754,0.1883455,101640.0,101630.0,0.00147565]
[1737079350353,0.3608,101650.0,101630.0,0.50142115]
[1737079350663,0.3608,101650.0,101630.0,0.36227565]
[1737079350850,0.4999455,101650.0,101630.0,0.36227565]
[1737079351049,0.1883405,101650.0,101630.0,0.36227565]
[1737079352146,0.3608,101660.0,101630.0,0.41147865]
[1737079352147,0.4999455,101660.0,101630.0,0.41147865]
[1737079352447,0.049195,101650.0,101630.0,0.41147865]
[1737079352755,0.049195,101650.0,101640.0,0.1537]